bitfinex-derivatives/quotes_ETHF0:USTF0_20260226
["timestamp","ask_amount","ask_price","bid_price","bid_amount"]
[1772105732300,0.6503513,2061.6,2061.0,0.67187376]
[1772105732700,0.65559659,2061.6,2061.0,0.67187376]
[1772105732997,0.65559659,2061.6,2060.8,0.67187376]
[1772105741414,0.65559659,2061.6,2060.8,0.67187376]
[1772105742713,0.00524529,2061.6,2060.8,0.67187376]
[1772105743314,0.70300765,2061.6,2060.8,0.67187376]
[1772105755324,0.00524529,2061.6,2061.0,0.70367195]
[1772105759327,0.7145817,2061.6,2061.0,0.70367195]
[1772105762323,0.70933641,2061.8,2061.0,0.70367195]
[1772105763126,0.70933641,2062.0,2061.3,0.64570952]
[1772105763425,0.0042465,2062.0,2061.3,0.64570952]
[1772105763830,0.71358291,2062.0,2061.3,0.64570952]
[1772105765531,0.0042465,2062.0,2061.3,0.64570952]
[1772105767636,0.70933641,2062.4,2061.3,0.64570952]
[1772105767834,0.70933641,2062.4,2061.6,0.64570952]
[1772105768632,0.71503599,2062.4,2061.6,0.64570952]
[1772105769935,0.70933641,2062.1,2061.2,0.64570952]
[1772105770132,1.18606527,2062.2,2061.2,0.64570952]
[1772105770133,0.70933641,2061.9,2061.2,0.64570952]
[1772105774542,0.70933641,2061.9,2061.1,0.64570952]
[1772105776938,0.70933641,2061.9,2060.8,0.64570952]
[1772105786750,0.70933641,2061.9,2060.9,6.356]
[1772105786947,0.70933641,2061.9,2061.0,0.68735916]
[1772105792753,0.68532229,2062.2,2061.3,0.68735916]
[1772105793354,0.68532229,2062.2,2061.5,0.68735916]
[1772105797259,0.68532229,2062.2,2061.6,0.67177923]
[1772105800761,0.64543737,2062.3,2061.8,0.67177923]
[1772105801656,0.64543737,2062.3,2062.0,0.67177923]
[1772105801860,0.474389,2062.4,2062.0,0.67679982]
[1772105805461,0.00569958,2062.4,2062.0,0.67679982]
[1772105807868,13.76949645,2063.0,2062.3,0.67177923]
[1772105808066,1.18529475,2062.8,2062.2,0.67177923]
[1772105808374,0.47896786,2062.7,2062.1,0.67177923]
[1772105808774,0.48241232,2062.7,2062.1,0.67177923]
[1772105809969,1.18529475,2062.6,2062.0,0.67679982]
[1772105810170,0.47796366,2062.4,2062.0,0.67679982]
[1772105811071,0.47796366,2062.4,2061.9,0.67177923]
[1772105811976,0.47727151,2062.3,2061.9,0.67794864]
[1772105813273,0.63174388,2061.9,2061.3,0.67177923]
[1772105813476,0.63174388,2061.8,2061.3,0.67177923]
[1772105814376,12.82591191,2061.9,2061.3,0.67663382]
[1772105817276,0.62891191,2061.9,2061.3,0.67663382]
[1772105817575,12.82891191,2061.9,2061.3,0.67663382]
[1772105818575,0.60306392,2061.8,2061.3,0.67663382]
[1772105819074,12.80362274,2061.9,2061.3,0.67663382]
[1772105820275,0.60334887,2061.8,2061.3,0.67663382]
[1772105820975,12.2,2061.9,2061.3,0.67663382]
[1772105821170,0.6038952,2062.0,2061.3,0.67663382]
[1772105821376,9.642,2062.1,2061.8,0.71584419]
[1772105821676,12.80184652,2062.3,2061.9,0.71584419]
[1772105822276,12.80184652,2062.3,2061.7,1.18529475]
[1772105822277,0.60438344,2062.2,2061.7,0.71584419]
[1772105823678,0.60438344,2062.2,2061.6,0.71584419]
[1772105824474,0.24584446,2062.7,2061.7,1.18529475]
[1772105824777,0.5991844,2062.5,2062.0,0.71584419]
[1772105825677,0.5991844,2062.5,2061.8,0.71584419]
[1772105829376,0.5991844,2062.5,2062.2,0.71584419]
[1772105829776,0.5991844,2062.5,2062.0,0.71584419]
[1772105831873,12.236,2062.6,2062.0,0.71584419]
[1772105832275,0.56070051,2062.5,2062.0,0.71584419]
[1772105832482,0.5618347,2062.1,2061.3,0.72069878]
[1772105832682,0.5618347,2062.0,2061.3,0.72069878]
[1772105832878,0.56231219,2061.9,2061.3,0.72069878]
[1772105835679,0.56371297,2061.8,2061.3,0.72069878]
[1772105836482,0.56371297,2061.8,2061.3,0.00485459]
[1772105836688,0.56371297,2061.8,2061.1,0.71584419]
[1772105837884,0.56371297,2061.8,2061.1,0.71950335]
[1772105842991,0.5538138,2062.2,2061.2,0.71584419]
[1772105844397,0.5604958,2062.0,2061.2,0.71584419]
[1772105851993,0.56370402,2061.8,2061.1,0.00365916]
[1772105852196,0.56370402,2061.6,2061.1,0.70077286]
[1772105855000,0.56370402,2061.6,2060.5,0.6971137]
[1772105855197,0.56370402,2061.6,2060.9,1.18611769]
[1772105855398,0.56370402,2061.6,2061.0,0.6971137]
[1772105856000,0.56370402,2061.6,2061.0,0.70110077]
[1772105860302,0.56370402,2061.6,2061.0,0.00398707]
[1772105860502,0.67498353,2061.5,2060.6,0.68742097]
[1772105861506,0.67498353,2061.5,2060.6,0.69156103]
[1772105864506,13.00898353,2061.4,2060.8,0.68742097]
[1772105864906,12.334,2061.4,2060.8,0.68742097]
[1772105865803,0.67498353,2061.3,2060.8,0.68742097]
[1772105866102,0.67498353,2061.3,2060.6,0.69156103]
[1772105871101,0.67498353,2061.4,2060.6,0.69156103]
[1772105871303,12.376,2061.5,2060.6,0.69156103]
[1772105871908,13.05098353,2061.5,2060.6,0.69156103]
[1772105872610,0.67498353,2061.4,2060.6,0.69156103]
[1772105882522,0.67498353,2061.4,2060.6,0.00414006]
[1772105885117,0.71825862,2061.2,2060.3,0.67254529]
[1772105886125,0.72197559,2061.2,2060.3,0.67666991]
[1772105886326,0.71825862,2061.0,2060.3,0.67666991]
[1772105889025,0.71825862,2061.0,2060.3,0.00412462]
[1772105889227,0.71825862,2061.0,2060.1,0.67254529]
[1772105890030,0.71825862,2061.0,2060.1,0.66897306]
[1772105890230,0.71825862,2061.0,2060.1,0.6741703]
[1772105892133,0.71825862,2060.8,2060.1,0.00519724]
[1772105892431,0.71825862,2060.8,2060.1,0.67774253]
[1772105893830,0.71825862,2061.1,2060.1,0.67774253]
[1772105894729,0.71825862,2061.0,2060.1,0.67774253]
[1772105899241,13.11425862,2060.9,2060.1,0.67774253]
[1772105899739,0.71825862,2060.8,2060.1,0.67774253]
[1772105911950,12.396,2060.9,2060.1,0.67774253]
[1772105912151,13.10088973,2060.9,2060.1,0.67774253]
[1772105912451,0.24259,2061.1,2060.3,0.70745667]
[1772105912452,0.70488973,2061.1,2060.3,0.70745667]
[1772105914147,0.7086067,2061.2,2060.3,0.70745667]
[1772105917349,0.72644963,2061.0,2060.3,0.70745667]
[1772105917550,0.72644963,2061.0,2060.2,0.74612186]
[1772105917752,0.72644963,2060.8,2060.2,0.74612186]
[1772105925358,0.72644963,2060.9,2060.5,0.74612186]
[1772105925761,0.72644963,2060.9,2060.5,0.37612186]
[1772105929860,0.72644963,2060.9,2060.4,0.74612186]
[1772105930060,0.72644963,2060.9,2060.2,0.74612186]
[1772105930061,0.72644963,2060.8,2060.2,0.74612186]
[1772105935663,0.72644963,2061.1,2060.4,0.74612186]
[1772105938668,0.24629697,2061.2,2060.6,0.74150169]
[1772105938669,0.92391903,2061.2,2060.6,0.74150169]
[1772105938969,0.67762206,2061.1,2060.6,0.74150169]
[1772105951673,0.67762206,2061.0,2060.4,0.74150169]
[1772105955374,0.67762206,2060.8,2060.2,0.74150169]
[1772105957576,0.67762206,2060.6,2060.2,0.74150169]
[1772105960574,0.67762206,2060.6,2060.1,0.00519724]
[1772105960781,0.67762206,2060.5,2060.0,0.74150169]
[1772105961680,0.67762206,2060.5,2060.0,0.74502753]
[1772105963578,0.67762206,2060.8,2060.2,0.74150169]
[1772105964678,0.67762206,2060.8,2060.3,0.74150169]
[1772105968787,0.00371697,2061.2,2060.8,0.73424896]
[1772105968983,0.73433888,2061.3,2060.8,0.73424896]
[1772105969184,0.73433888,2061.4,2060.8,0.73424896]
[1772105969986,0.7396977,2061.4,2060.8,0.73424896]
[1772105974895,0.7396977,2061.4,2060.7,1.18701633]
[1772105974896,0.73433888,2061.2,2060.4,0.73424896]
[1772105976594,0.69597958,2061.0,2060.4,0.73424896]
[1772105984596,0.69597958,2061.0,2060.3,0.72448431]
[1772105992814,0.69597958,2061.0,2060.1,0.72448431]
[1772106013823,0.69597958,2061.0,2060.0,0.00352584]
[1772106013824,0.75960989,2060.6,2059.8,0.73353885]
[1772106014024,0.75960989,2060.7,2059.9,0.73353885]
[1772106014929,0.75960989,2060.7,2059.9,0.73785213]
[1772106018231,0.75960989,2061.1,2060.5,0.73353885]
[1772106029649,0.72847831,2061.2,2060.5,0.73353885]
[1772106029948,0.72847831,2061.3,2060.5,0.73353885]
[1772106032545,0.24253,2061.6,2060.5,0.73353885]
[1772106032546,0.72847831,2061.6,2060.8,0.69383123]
[1772106033547,0.73291023,2061.6,2060.8,0.69383123]
[1772106039353,0.73291023,2061.6,2060.9,0.74735997]
[1772106042553,0.76042031,2061.5,2060.9,0.74735997]
[1772106052462,0.76042031,2061.8,2061.3,0.74735997]
[1772106052865,0.76042031,2061.7,2061.1,0.74735997]
[1772106053466,0.76581396,2061.7,2061.1,0.74735997]
[1772106053962,0.76042031,2061.5,2060.7,10.15408091]
[1772106054167,0.76042031,2061.5,2060.8,0.74735997]
[1772106061377,0.71367209,2061.3,2060.8,0.74735997]
[1772106062869,0.71367209,2061.1,2060.5,0.71843456]
[1772106072380,0.71367209,2061.1,2060.4,0.71843456]
[1772106072581,0.71367209,2061.1,2060.1,7.54668124]
[1772106072780,0.71367209,2061.1,2060.2,0.71843456]
[1772106082688,0.71367209,2061.1,2060.3,1.90454357]
[1772106083694,0.71367209,2061.1,2060.4,0.71843456]
[1772106086590,0.71367209,2061.1,2060.3,1.18610901]
[1772106086790,0.71913597,2060.9,2060.2,0.69603711]
[1772106087892,0.71913597,2060.8,2060.2,0.69603711]
[1772106088088,0.71913597,2060.8,2060.1,1.88571835]
[1772106088288,0.71913597,2060.8,2060.2,0.69603711]
[1772106090192,41.51913597,2060.9,2060.4,0.69603711]
[1772106090395,0.71913597,2060.9,2060.4,0.69603711]
[1772106090902,0.71913597,2061.0,2060.6,0.69603711]
[1772106093694,0.71913597,2060.9,2060.2,0.69603711]
[1772106117626,0.76373828,2061.1,2060.2,0.69603711]
[1772106118626,0.76373828,2060.9,2060.1,0.00357223]
[1772106118826,0.76373828,2060.7,2060.1,0.70009285]
[1772106119226,0.76373828,2060.7,2060.1,0.00357223]
[1772106120223,0.76373828,2060.7,2060.1,0.70009285]
[1772106124524,0.76373828,2060.7,2060.1,0.00357223]
[1772106125226,0.76373828,2060.7,2060.1,0.70009285]
[1772106131134,12.96873828,2060.7,2060.1,0.70009285]
[1772106136031,0.76373828,2060.9,2060.1,0.70009285]
[1772106141726,0.76373828,2060.7,2060.1,0.00357223]
[1772106141927,0.76373828,2060.5,2059.9,0.00431328]
[1772106143536,0.76373828,2060.5,2059.9,0.7008339]
[1772106146332,1.95069431,2060.5,2059.9,0.00431328]
[1772106146537,1.95069431,2060.5,2059.5,0.67583685]
[1772106146538,0.67947851,2060.4,2059.5,0.67583685]
[1772106146735,0.67947851,2060.4,2059.1,12.93541113]
[1772106146736,0.67947851,2060.4,2059.4,0.67583685]
[1772106147437,0.67947851,2060.4,2059.4,0.67930142]
[1772106147938,0.67947851,2060.3,2059.4,0.00346457]
[1772106148131,0.67947851,2060.0,2059.4,0.00346457]
[1772106148333,0.67947851,2059.8,2059.1,0.67583685]
[1772106148836,0.67947851,2059.7,2059.1,0.67583685]
[1772106149333,0.67947851,2059.7,2059.1,0.68148917]
[1772106150133,12.248,2059.8,2059.1,0.68148917]
[1772106150332,0.67947851,2059.9,2059.1,0.68148917]
[1772106151636,0.68450791,2060.0,2059.2,0.67583685]
[1772106151835,0.0050294,2060.0,2059.3,0.24279]
[1772106153542,0.0050294,2060.0,2059.4,0.67583685]
[1772106155340,0.67947851,2060.3,2059.6,0.67583685]
[1772106156245,0.68312012,2060.3,2059.6,0.67583685]
[1772106158044,0.68312012,2060.3,2059.4,0.69299259]
[1772106161247,0.68312012,2060.3,2059.6,0.69299259]
[1772106167760,0.677069,2060.2,2059.5,0.69299259]
[1772106168056,0.677069,2059.8,2059.4,0.69299259]
[1772106169954,0.677069,2059.8,2059.3,0.69299259]
[1772106170658,0.677069,2059.8,2059.1,0.69864491]
[1772106170858,0.677069,2059.6,2059.1,0.69864491]
[1772106171161,0.677069,2059.6,2059.1,0.00565232]
[1772106171859,1.18769628,2059.7,2058.7,0.69299259]
[1772106171860,0.677069,2059.4,2058.7,0.69299259]
[1772106173068,0.677069,2059.4,2058.7,0.6986846]
[1772106175365,41.98769628,2059.5,2058.7,0.6986846]
[1772106175366,40.8,2059.5,2058.8,0.69299259]
[1772106175565,0.677069,2059.4,2058.8,0.69299259]
[1772106177471,0.6973936,2059.3,2058.7,0.70944854]
[1772106177772,0.6973936,2059.3,2058.8,0.70375653]
[1772106178474,0.6973936,2059.4,2058.8,0.70375653]
[1772106178769,0.6973936,2059.4,2059.0,0.70375653]
[1772106178976,0.6973936,2059.6,2059.0,0.70375653]
[1772106180475,0.6973936,2059.5,2059.0,0.70375653]
[1772106180669,0.6973936,2059.5,2058.8,0.70375653]
[1772106181169,0.6973936,2059.3,2058.7,0.00569201]
[1772106181368,0.6973936,2059.3,2058.7,0.70944854]
[1772106183275,12.257,2059.8,2059.0,0.70375653]
[1772106183577,0.6973936,2059.7,2059.2,0.70375653]
[1772106183771,0.6973936,2060.0,2059.2,0.70375653]
[1772106183977,12.2483936,2060.0,2059.3,0.70375653]
[1772106184476,0.6973936,2059.9,2059.3,0.70375653]
[1772106188284,0.6973936,2059.7,2059.0,0.70375653]
[1772106188478,0.6973936,2059.4,2058.8,0.70375653]
[1772106189482,0.6973936,2059.8,2058.9,0.70375653]
[1772106189675,0.6973936,2059.8,2058.7,0.70944854]
[1772106190179,0.6973936,2059.6,2058.7,0.70944854]
[1772106191082,0.6973936,2059.4,2058.3,0.70375653]
[1772106191381,0.6973936,2059.2,2058.3,0.70375653]
[1772106191576,0.6973936,2059.2,2057.9,0.24295]
[1772106191778,0.6973936,2059.1,2058.0,0.70375653]
[1772106192078,0.6973936,2059.1,2058.0,0.70837111]
[1772106192079,0.6973936,2059.0,2058.0,0.70837111]
[1772106201587,0.6973936,2059.2,2058.0,0.70837111]
[1772106201787,9.6003936,2059.3,2058.2,0.70375653]
[1772106201990,8.903,2059.3,2058.2,0.70375653]
[1772106202189,9.6003936,2059.3,2058.2,0.70375653]
[1772106203695,0.6973936,2059.2,2058.2,0.70375653]
[1772106203994,9.6003936,2059.3,2058.2,0.70375653]
[1772106204992,0.6973936,2059.2,2058.2,0.70375653]
[1772106205697,0.6973936,2059.2,2058.3,0.70375653]
[1772106208996,0.65501755,2059.3,2058.5,0.61363523]
[1772106213307,0.65501755,2059.3,2058.7,0.61363523]
[1772106213905,0.65501755,2059.3,2058.5,0.61363523]
[1772106216109,0.65501755,2059.3,2058.7,0.61363523]
[1772106216607,0.65501755,2059.3,2058.8,1.18878348]
[1772106216807,0.65501755,2059.3,2058.9,0.59611626]
[1772106217608,0.62625887,2059.6,2058.9,0.59611626]
[1772106218508,0.62625887,2059.6,2059.1,0.59611626]
[1772106222212,0.62625887,2059.6,2058.6,0.59611626]
[1772106222713,0.62625887,2059.6,2058.4,0.59611626]
[1772106223911,0.62625887,2059.6,2058.6,0.59611626]
[1772106233012,0.62625887,2059.4,2058.6,0.59611626]
[1772106235017,0.62625887,2059.2,2058.2,0.59611626]
[1772106235217,0.62625887,2059.0,2058.2,0.59611626]
[1772106244718,10.2915499,2059.2,2058.2,0.59611626]
[1772106244923,0.6305499,2059.3,2058.2,0.59611626]
[1772106247621,0.6305499,2059.3,2058.3,0.59488459]
[1772106248923,0.6305499,2059.3,2058.5,0.59488459]
[1772106254030,0.6305499,2059.5,2058.7,0.59488459]
[1772106266433,0.59390311,2059.8,2059.0,0.6027153]
[1772106269046,0.59390311,2059.8,2058.8,6.36]
[1772106269248,0.59390311,2059.8,2058.9,0.6027153]
[1772106269445,0.59390311,2059.7,2058.9,0.6027153]
[1772106270246,0.59390311,2059.7,2058.8,0.6027153]
[1772106280454,0.59390311,2059.7,2058.7,0.56834828]
[1772106285856,0.59624081,2059.6,2058.7,0.56834828]
[1772106287748,0.59624081,2059.6,2058.6,0.56834828]
[1772106297369,0.59757622,2059.5,2058.7,0.59747066]
[1772106301572,0.59757622,2059.5,2058.9,0.59747066]
[1772106301772,0.59757622,2059.8,2059.3,0.59747066]
[1772106301974,0.59757622,2060.0,2059.5,0.59747066]
[1772106302276,0.59757622,2060.0,2059.5,0.60288118]
[1772106302872,0.59757622,2059.9,2059.1,0.59747066]
[1772106303077,0.59757622,2059.7,2059.1,0.59747066]
[1772106303477,0.59757622,2059.5,2058.7,0.59747066]
[1772106303873,0.59757622,2059.5,2058.7,0.60281632]
[1772106305880,0.59757622,2059.3,2058.7,0.60281632]
[1772106307080,0.59757622,2059.3,2058.7,0.00534566]
[1772106308380,0.59757622,2059.3,2058.7,0.60281632]
[1772106309284,0.59757622,2059.3,2058.9,0.59747066]
[1772106318088,0.59757622,2059.6,2058.9,0.59747066]
[1772106318288,12.55357622,2059.5,2058.9,0.59747066]
[1772106318689,0.59757622,2059.4,2058.9,0.59747066]
[1772106318888,1.78635009,2059.4,2058.7,0.00534566]
[1772106319084,0.59757622,2058.9,2058.2,0.59747066]
[1772106319489,0.59757622,2058.7,2057.9,0.59747066]
[1772106319980,0.60157349,2058.7,2057.9,0.60336851]
[1772106323293,0.59757622,2058.5,2057.9,0.60336851]
[1772106325396,0.59757622,2058.5,2057.9,0.00589785]
[1772106325596,0.59757622,2058.4,2057.9,0.00589785]
[1772106326098,0.59757622,2058.4,2057.8,0.55993764]
[1772106326996,0.59757622,2058.4,2057.8,0.56593427]
[1772106331094,0.59757622,2058.4,2057.9,1.18877387]
[1772106331295,0.59757622,2058.4,2058.0,0.57195499]
[1772106332600,0.59757622,2058.4,2057.8,0.57795162]
[1772106333098,0.59757622,2058.4,2057.8,0.00599663]
[1772106333494,0.59386812,2058.2,2057.6,0.57195499]
[1772106333696,0.59386812,2058.0,2057.4,0.57195499]
[1772106333896,0.59386812,2057.9,2057.4,0.57195499]
[1772106334298,0.59386812,2057.9,2057.3,0.57195499]
[1772106334695,0.59386812,2057.9,2057.3,0.57660948]
[1772106336204,0.59386812,2057.9,2057.4,0.57195499]
[1772106336400,12.019,2058.0,2057.6,0.57195499]
[1772106336804,12.58122697,2058.0,2057.6,0.57195499]
[1772106337004,0.56222697,2057.9,2057.6,0.57195499]
[1772106337305,0.56222697,2057.9,2057.4,0.58819201]
[1772106339605,0.56222697,2057.9,2057.3,0.5928465]
[1772106342208,0.56222697,2057.9,2057.3,0.00465449]
[1772106342405,0.56222697,2057.9,2057.3,0.5928465]
[1772106344504,0.56222697,2057.9,2057.0,1.1903181]
[1772106344806,0.56222697,2057.9,2057.1,0.05286732]
[1772106345606,0.56222697,2057.9,2057.1,0.05827434]
[1772106346799,12.019,2058.0,2057.1,0.05827434]
[1772106347004,0.56222697,2057.8,2057.1,0.05827434]
[1772106353113,0.56222697,2057.8,2057.1,0.00540702]
[1772106353508,0.56222697,2057.8,2056.9,0.58819201]
[1772106354513,0.56222697,2057.8,2056.9,0.59294324]
[1772106356427,0.56222697,2057.8,2056.9,0.00475123]
[1772106356724,0.56222697,2057.8,2056.9,0.87522034]
[1772106358619,0.56222697,2057.8,2056.9,0.00475123]
[1772106359125,0.92719651,2057.6,2056.9,0.00475123]
[1772106360921,0.92719651,2057.6,2056.9,0.87522034]
[1772106362027,0.92719651,2057.5,2056.9,0.87522034]
[1772106362422,0.92719651,2057.7,2056.9,0.87522034]
[1772106367225,0.92719651,2058.0,2057.1,0.87046911]
[1772106370621,0.92719651,2058.0,2056.9,0.00475123]
[1772106370827,0.92719651,2058.0,2056.9,0.87522034]
[1772106371226,0.24295,2057.9,2056.9,0.87522034]
[1772106371527,0.92719651,2057.7,2056.9,0.00475123]
[1772106371826,0.92719651,2057.3,2056.3,0.87046911]
[1772106372032,0.92719651,2057.1,2056.3,0.87046911]
[1772106372425,0.92719651,2056.3,2055.5,12.20493113]
[1772106372626,0.92719651,2056.1,2055.0,0.87046911]
[1772106373027,0.93150559,2056.1,2055.0,0.87508065]
[1772106373229,0.93150559,2056.1,2055.0,0.00461154]
[1772106373434,0.93150559,2056.1,2055.0,0.87508065]
[1772106373633,0.92719651,2055.9,2055.0,0.87508065]
[1772106374930,0.92719651,2055.8,2055.0,0.87508065]
[1772106375536,0.92719651,2056.0,2055.0,0.87508065]
[1772106376735,0.00430908,2056.1,2055.0,0.87508065]
[1772106376935,0.93150559,2056.1,2055.0,0.87508065]
[1772106377740,0.00430908,2056.1,2055.2,0.87046911]
[1772106379739,0.92719651,2056.4,2055.2,0.87046911]
[1772106380042,0.92719651,2056.4,2055.4,0.87046911]
[1772106380240,0.92719651,2056.6,2055.5,0.87046911]
[1772106380542,0.92719651,2056.9,2055.7,0.87046911]
[1772106380840,0.9335102,2056.9,2055.7,0.87046911]
[1772106381439,0.9335102,2056.9,2055.9,0.87046911]
[1772106381642,0.00631369,2056.9,2055.9,0.87046911]
[1772106382638,0.9335102,2056.9,2055.9,0.87046911]
[1772106385550,0.00631369,2056.9,2056.1,0.87046911]
[1772106386042,0.92719651,2057.0,2056.1,0.87046911]
[1772106387044,0.93070551,2057.0,2056.1,0.87046911]
[1772106389844,0.93070551,2057.0,2056.3,1.31398975]
[1772106390941,0.93070551,2057.0,2055.8,1.33423533]
[1772106392048,0.003509,2057.0,2055.8,1.57742533]
[1772106393247,0.24815883,2057.0,2055.8,1.57742533]
[1772106394748,0.24815883,2057.0,2055.8,1.33423533]
[1772106396852,0.21125074,2056.9,2055.8,1.33423533]
[1772106397953,0.21125074,2056.9,2055.8,1.57743533]
[1772106399146,0.21125074,2056.9,2055.8,1.33423533]
[1772106400354,0.1812496,2056.7,2055.8,1.33423533]
[1772106400667,0.17695759,2056.5,2055.6,1.34473469]
[1772106400958,0.17695759,2056.3,2055.4,1.34473469]
[1772106402251,40.95823082,2056.5,2055.4,1.34473469]
[1772106402450,0.15823082,2056.4,2055.4,1.34473469]
[1772106407457,40.8,2056.3,2055.4,1.34473469]
[1772106412165,0.24315,2056.2,2055.1,1.40088635]
[1772106412565,12.029,2056.1,2055.1,1.40088635]
[1772106414262,12.041,2056.0,2055.1,1.40088635]
[1772106415761,40.8,2056.3,2055.1,1.40088635]
[1772106415966,4.02337824,2056.7,2055.0,0.24790154]
[1772106415967,12.046,2056.7,2055.4,1.6442966]
[1772106416367,52.846,2056.7,2055.4,1.6442966]
[1772106416561,12.046,2056.7,2055.4,1.6442966]
[1772106416766,0.24311,2056.6,2055.4,1.4010466]
[1772106416959,6.42813926,2056.5,2055.4,1.4010466]
[1772106417163,40.8,2056.4,2055.4,1.4010466]
[1772106419468,12.061,2056.3,2055.8,1.46102372]
[1772106420668,12.061,2056.3,2055.2,1.46104679]
[1772106420861,52.861,2056.3,2055.2,1.46104679]
[1772106423267,40.8,2056.3,2055.2,1.46104679]
[1772106423469,12.105,2056.2,2055.2,1.46104679]
[1772106427569,0.24321,2055.8,2055.0,0.00461154]
[1772106427872,0.24321,2055.8,2055.0,1.47737727]
[1772106428171,12.114,2055.7,2055.0,1.47737727]
[1772106428370,12.114,2055.7,2055.0,0.00461154]
[1772106429674,8.90617696,2055.6,2054.3,1.46906581]
[1772106429873,6.42509791,2055.5,2054.3,1.46906581]
[1772106430166,2.0319562,2055.6,2054.3,1.46906581]
[1772106430374,12.114,2055.7,2054.4,0.24337]
[1772106430568,12.114,2055.7,2054.5,1.46194718]
[1772106430569,12.1184848,2055.7,2054.5,1.46194718]
[1772106430769,40.8,2055.6,2054.5,1.46194718]
[1772106431173,52.923,2055.6,2054.5,1.46194718]
[1772106435180,52.923,2055.6,2054.8,6.6052764]
[1772106436275,52.923,2055.6,2054.6,1.45610033]
[1772106438386,40.8,2055.6,2054.6,1.45610033]
[1772106438683,12.208,2055.5,2054.6,1.45610033]
[1772106439285,40.8,2055.4,2054.6,1.45610033]
[1772106439483,12.208,2055.5,2054.6,1.45610033]
[1772106440084,53.008,2055.5,2054.6,1.45610033]
[1772106440389,0.24325,2055.4,2054.4,1.45433748]
[1772106441084,12.212,2055.3,2054.4,1.45433748]
[1772106442988,0.24327,2055.2,2054.4,1.45433748]
[1772106443382,6.22886,2054.9,2053.7,1.41059655]
[1772106443586,0.24333,2054.7,2053.7,1.41059655]
[1772106443783,12.238,2054.6,2053.0,1.41078453]
[1772106443990,18.89523757,2054.5,2053.0,1.41078453]
[1772106444184,12.48036,2054.5,2053.0,1.41078453]
[1772106444384,12.48036,2054.5,2053.0,1.41560462]
[1772106444591,12.242,2054.6,2053.2,1.40237319]
[1772106445386,12.242,2054.6,2053.4,1.40237319]
[1772106445996,0.2433,2055.0,2053.4,1.40237319]
[1772106446189,12.238,2054.9,2053.4,1.40237319]
[1772106447786,0.2433,2055.0,2053.4,1.40237319]
[1772106448093,11.21,2054.9,2053.4,1.40237319]
[1772106448589,11.21,2054.9,2054.1,8.00794973]
[1772106449095,11.21,2054.9,2054.1,6.6052764]
[1772106449482,12.239,2055.1,2054.2,1.40615448]
[1772106450589,41.04325,2055.5,2054.2,1.40615448]
[1772106450790,18.65186877,2055.4,2054.2,1.40615448]
[1772106450995,12.247,2055.4,2054.2,1.40615448]
[1772106451190,8.43775021,2055.3,2053.7,1.402864]
[1772106451491,2.0319862,2055.3,2053.7,1.402864]
[1772106454793,0.24331,2055.0,2053.7,1.402864]
[1772106456999,2.0320362,2055.0,2053.7,1.402864]
[1772106457699,6.49075332,2054.9,2053.7,1.402864]
[1772106457896,12.232,2054.8,2053.7,1.402864]
[1772106458196,0.24331,2055.0,2053.7,1.402864]
[1772106458403,0.24325,2055.4,2053.9,1.39784244]
[1772106458601,0.24327,2055.2,2053.9,1.39784244]
[1772106461195,12.219,2055.1,2053.9,1.39784244]
[1772106461396,0.24327,2055.2,2054.1,1.39552418]
[1772106462903,12.22,2055.1,2054.1,1.39552418]
[1772106463299,12.22,2055.1,2054.5,6.6052764]
[1772106463501,12.22,2055.1,2054.5,6.60981822]
[1772106464903,12.22,2055.1,2054.5,0.00454182]
[1772106465107,12.22,2055.1,2054.5,1.39542353]
[1772106465704,12.231,2055.2,2054.5,1.39542353]
[1772106467808,12.231,2055.2,2054.5,0.00454182]
[1772106468006,0.24328,2055.1,2054.5,0.00454182]
[1772106470298,6.51325246,2055.0,2054.5,0.00454182]
[1772106470507,0.24328,2055.1,2054.5,0.00454182]
[1772106470707,6.51257031,2055.0,2054.5,0.00454182]
[1772106470908,0.24328,2055.1,2054.5,0.00454182]
[1772106471108,6.51254751,2055.0,2054.5,0.00454182]
[1772106471305,0.24328,2055.1,2054.5,0.00454182]
[1772106471499,6.51387994,2055.0,2054.5,0.00454182]
[1772106471705,0.24328,2055.1,2054.5,0.00454182]
[1772106471907,6.51311825,2055.0,2054.5,0.00454182]
[1772106472107,0.24328,2055.1,2054.5,0.00454182]
[1772106472306,6.51307355,2055.0,2054.5,0.00454182]
[1772106472507,0.24328,2055.1,2054.2,1.38126092]
[1772106472708,6.51457312,2055.0,2054.2,1.38126092]
[1772106472912,0.24328,2055.1,2054.2,1.38126092]
[1772106473210,6.5146271,2055.0,2054.2,1.38126092]
[1772106473410,0.24328,2055.1,2054.2,1.38487679]
[1772106473605,6.51477423,2055.0,2054.2,1.38487679]
[1772106473802,0.24328,2055.1,2054.2,1.38487679]
[1772106474008,6.51468106,2055.0,2054.2,1.38487679]
[1772106475813,6.51997321,2055.0,2054.2,1.38487679]
[1772106476111,6.51997321,2054.9,2054.2,1.38487679]
[1772106476309,0.24328,2055.1,2054.2,1.38487679]
[1772106476512,6.51861652,2055.0,2054.2,1.38487679]
[1772106476809,6.51861652,2054.9,2054.2,1.38487679]
[1772106477009,0.24328,2055.1,2054.2,1.38487679]
[1772106477211,6.96868013,2055.0,2054.2,1.38487679]
[1772106477407,6.51831911,2054.9,2054.2,1.38487679]
[1772106477603,0.24328,2055.1,2054.2,1.38487679]
[1772106477807,12.295,2054.8,2054.2,1.38487679]
[1772106480716,12.296,2055.1,2054.5,1.38625044]
[1772106482313,12.296,2055.1,2054.2,1.39013808]
[1772106482519,12.296,2055.1,2053.7,1.38652221]
[1772106482520,0.24334,2054.7,2053.7,1.38652221]
[1772106482710,16.9411537,2055.0,2053.7,1.38652221]
[1772106482711,0.24336,2054.5,2053.7,1.38652221]
[1772106482911,12.316,2054.4,2053.7,1.38652221]
[1772106483511,12.316,2054.4,2053.7,1.39168947]
[1772106485014,0.24336,2054.5,2053.7,1.39168947]
[1772106485218,12.314,2054.4,2053.7,1.39168947]
[1772106487214,4.02337824,2054.9,2053.7,1.39168947]
[1772106487420,12.75976472,2054.8,2053.7,1.39168947]
[1772106487618,6.89166407,2054.7,2053.7,1.39168947]
[1772106487818,6.44192293,2054.6,2053.7,1.39168947]
[1772106488017,12.31,2054.8,2053.7,1.39168947]
[1772106488218,6.44190002,2054.7,2053.7,1.39168947]
[1772106488418,12.309,2054.6,2053.7,1.39168947]
[1772106490425,4.02337824,2054.9,2053.7,1.39168947]
[1772106490626,12.304,2054.8,2053.7,1.39168947]
[1772106490824,0.24331,2055.0,2053.7,1.63513947]
[1772106491022,12.304,2054.7,2053.7,1.63513947]
[1772106493030,12.304,2054.7,2053.7,1.39168947]
[1772106494630,12.304,2054.7,2053.2,1.38166754]
[1772106494631,0.24338,2054.4,2053.2,1.38166754]
[1772106494829,6.43933538,2054.3,2053.2,1.38166754]